[Event "*** Titled Tuesday Blitz"]
[Site "Chess.com"]
[Date "2021.04.27"]
[Round "1"]
[White "nikitakhoroshev"]
[Black "NovikovaGalina"]
[Result "0-1"]
[WhiteElo "2600"]
[BlackElo "2307"]
[TimeControl "180+1"]
[EndTime "10:08:06 PDT"]
[Termination "NovikovaGalina won by resignation"]

1. d4 {[%clk 0:02:53.3]} 1... Nf6 {[%clk 0:02:57.2]} 2. Nf3 {[%clk 0:02:53.4]}
2... g6 {[%clk 0:02:56.8]} 3. Bg5 {[%clk 0:02:53.5]} 3... Bg7 {[%clk 0:02:56.9]}
4. Nbd2 {[%clk 0:02:53.2]} 4... d6 {[%clk 0:02:57.3]} 5. e3 {[%clk 0:02:53.3]}
5... Bf5 {[%clk 0:02:48.8]} 6. c3 {[%clk 0:02:51.9]} 6... Nbd7 {[%clk
0:02:47.3]} 7. Bc4 {[%clk 0:02:51]} 7... O-O {[%clk 0:02:46.3]} 8. h3 {[%clk
0:02:49.8]} 8... Nb6 {[%clk 0:02:37.3]} 9. Bb3 {[%clk 0:02:43.6]} 9... Re8
{[%clk 0:02:34.6]} 10. a4 {[%clk 0:02:39]} 10... e5 {[%clk 0:02:32.9]} 11. O-O
{[%clk 0:02:37.3]} 11... h6 {[%clk 0:02:16.3]} 12. Bh4 {[%clk 0:02:36.6]} 12...
g5 {[%clk 0:02:16.1]} 13. Bg3 {[%clk 0:02:34.9]} 13... e4 {[%clk 0:02:01.1]} 14.
Nh2 {[%clk 0:02:32.4]} 14... Bg6 {[%clk 0:01:44.9]} 15. f4 {[%clk 0:02:27]}
15... gxf4 {[%clk 0:01:20.8]} 16. Bxf4 {[%clk 0:02:22.4]} 16... Nh5 {[%clk
0:01:20.7]} 17. Qg4 {[%clk 0:02:13]} 17... Nxf4 {[%clk 0:01:20.2]} 18. Rxf4
{[%clk 0:02:13.9]} 18... Qg5 {[%clk 0:01:20.4]} 19. Raf1 {[%clk 0:02:13.1]}
19... Re7 {[%clk 0:01:11.3]} 20. a5 {[%clk 0:02:11.8]} 20... Nd7 {[%clk
0:01:07.7]} 21. Rxf7 {[%clk 0:01:53.9]} 21... Bxf7 {[%clk 0:01:02.2]} 22. Rxf7
{[%clk 0:01:53.3]} 22... Rxf7 {[%clk 0:01:03.1]} 23. Qxd7 {[%clk 0:01:53.4]}
23... Qxe3+ {[%clk 0:01:01.2]} 24. Kh1 {[%clk 0:01:53.3]} 24... Qxd2 {[%clk
0:00:44.9]} 25. Bxf7+ {[%clk 0:01:48.3]} 25... Kh8 {[%clk 0:00:44.8]} 26. Ng4
{[%clk 0:01:46.9]} 26... Qc1+ {[%clk 0:00:41.6]} 27. Kh2 {[%clk 0:01:46.6]}
27... Qf4+ {[%clk 0:00:41.9]} 28. Kg1 {[%clk 0:01:45.1]} 28... Rf8 {[%clk
0:00:39.9]} 29. Bg6 {[%clk 0:01:44.2]} 29... e3 {[%clk 0:00:30.3]} 30. Bd3
{[%clk 0:01:34.8]} 30... h5 {[%clk 0:00:18.4]} 31. Qe6 {[%clk 0:01:34]} 31...
hxg4 {[%clk 0:00:14.4]} 32. Qg6 {[%clk 0:01:34.2]} 32... Qf2+ {[%clk 0:00:13.2]}
33. Kh1 {[%clk 0:01:33.3]} 33... Qe1+ {[%clk 0:00:12.9]} 34. Kh2 {[%clk
0:01:33.8]} 34... g3+ {[%clk 0:00:13.3]} 35. Qxg3 {[%clk 0:01:34.4]} 35... Qxg3+
{[%clk 0:00:14.2]} 36. Kxg3 {[%clk 0:01:35.3]} 36... Rf2 {[%clk 0:00:14.2]} 37.
b4 {[%clk 0:01:35.4]} 37... Rb2 {[%clk 0:00:12.9]} 38. Kf3 {[%clk 0:01:33.1]}
38... Rb3 {[%clk 0:00:10.2]} 39. Kxe3 {[%clk 0:01:32.8]} 39... Rxc3 {[%clk
0:00:10.8]} 40. Ke4 {[%clk 0:01:33.7]} 40... Rb3 {[%clk 0:00:09.5]} 41. b5
{[%clk 0:01:34.2]} 41... Rb4 {[%clk 0:00:08.1]} 42. Ke3 {[%clk 0:01:34.4]} 42...
Rxd4 {[%clk 0:00:07.3]} 43. g4 {[%clk 0:01:33.8]} 43... Ra4 {[%clk 0:00:06.3]}
44. a6 {[%clk 0:01:34]} 44... bxa6 {[%clk 0:00:07.2]} 45. bxa6 {[%clk
0:01:34.9]} 45... Ra3 {[%clk 0:00:07.7]} 46. Ke4 {[%clk 0:01:35]} 46... Ra1
{[%clk 0:00:05.7]} 47. Bb5 {[%clk 0:01:34.4]} 47... Re1+ {[%clk 0:00:06.6]} 48.
Kf4 {[%clk 0:01:34.1]} 48... c5 {[%clk 0:00:06.5]} 49. g5 {[%clk 0:01:33.6]}
49... c4 {[%clk 0:00:06.8]} 50. Bxc4 {[%clk 0:01:33]} 50... Ra1 {[%clk
0:00:06.6]} 51. Ke4 {[%clk 0:01:32.3]} 51... Ra4 {[%clk 0:00:07.1]} 52. Kd5
{[%clk 0:01:31.6]} 52... Be5 {[%clk 0:00:06.3]} 53. h4 {[%clk 0:01:30.8]} 53...
Ra5+ {[%clk 0:00:06.7]} 54. Ke6 {[%clk 0:01:31.3]} 54... Rc5 {[%clk 0:00:07.5]}
55. Bd5 {[%clk 0:01:31.6]} 55... Kg7 {[%clk 0:00:05.2]} 56. h5 {[%clk
0:01:31.9]} 56... Bf4 {[%clk 0:00:04.5]} 57. h6+ {[%clk 0:01:32.1]} 57... Kh8
{[%clk 0:00:02.4]} 58. g6 {[%clk 0:01:31]} 58... Bxh6 {[%clk 0:00:03.3]} 59.
Kxd6 {[%clk 0:01:31.3]} 59... Ra5 {[%clk 0:00:03.4]} 60. Bb7 {[%clk 0:01:30.8]}
60... Bg7 {[%clk 0:00:04.3]} 61. Ke6 {[%clk 0:01:31]} 61... Bd4 {[%clk
0:00:04.1]} 62. Kf7 {[%clk 0:01:30.6]} 62... Bc3 {[%clk 0:00:04.3]} 63. Kf8
{[%clk 0:01:30.6]} 63... Bg7+ {[%clk 0:00:03.7]} 64. Kf7 {[%clk 0:01:30.8]}
64... Ra1 {[%clk 0:00:04.6]} 65. Ke8 {[%clk 0:01:31.1]} 65... Re1+ {[%clk
0:00:04.4]} 66. Kf7 {[%clk 0:01:32]} 66... Bd4 {[%clk 0:00:04.8]} 67. Kf8 {[%clk
0:01:30.8]} 67... Rf1+ {[%clk 0:00:04.8]} 68. Ke7 {[%clk 0:01:31.1]} 68... Kg7
{[%clk 0:00:05.7]} 69. Kd7 {[%clk 0:01:29.6]} 69... Bb6 {[%clk 0:00:06.1]} 70.
Kd6 {[%clk 0:01:30.5]} 70... Rd1+ {[%clk 0:00:06.5]} 71. Kc6 {[%clk 0:01:29.3]}
71... Kxg6 {[%clk 0:00:07.4]} 72. Bc8 {[%clk 0:01:29.4]} 72... Kf6 {[%clk
0:00:07.4]} 73. Kb7 {[%clk 0:01:30]} 73... Rc1 {[%clk 0:00:08.3]} 74. Ka8 {[%clk
0:01:30.2]} 74... Rxc8+ {[%clk 0:00:07.9]} 75. Kb7 {[%clk 0:01:31.1]} 75... Rc1
{[%clk 0:00:08.7]} 76. Ka8 {[%clk 0:01:31.6]} 76... Ke5 {[%clk 0:00:08.9]} 77.
Kb7 {[%clk 0:01:32.5]} 77... Kd4 {[%clk 0:00:09.8]} 78. Ka8 {[%clk 0:01:33.4]}
78... Kc4 {[%clk 0:00:10.2]} 79. Kb7 {[%clk 0:01:33.7]} 79... Kb4 {[%clk
0:00:11.1]} 80. Ka8 {[%clk 0:01:34.6]} 80... Ka5 {[%clk 0:00:11.9]} 81. Kb7
{[%clk 0:01:35.5]} 81... Rc2 {[%clk 0:00:12.2]} 82. Ka8 {[%clk 0:01:36.4]} 82...
Kxa6 {[%clk 0:00:11.9]} 0-1

[Event "*** Titled Tuesday Blitz"]
[Site "Chess.com"]
[Date "2021.04.27"]
[Round "1"]
[White "Coiote53"]
[Black "Forantes"]
[Result "0-1"]
[WhiteElo "2029"]
[BlackElo "2490"]
[TimeControl "180+1"]
[EndTime "10:08:12 PDT"]
[Termination "Forantes won by resignation"]

1. e4 {[%clk 0:03:00.9]} 1... c5 {[%clk 0:02:59]} 2. Nf3 {[%clk 0:03:00.1]} 2...
Nc6 {[%clk 0:02:58.1]} 3. d4 {[%clk 0:03:00.5]} 3... cxd4 {[%clk 0:02:59]} 4.
Nxd4 {[%clk 0:03:01.4]} 4... e5 {[%clk 0:02:59.1]} 5. Nb5 {[%clk 0:03:01.1]}
5... d6 {[%clk 0:02:59.1]} 6. c4 {[%clk 0:02:59.3]} 6... Be7 {[%clk 0:02:58.2]}
7. N5c3 {[%clk 0:02:59.1]} 7... f5 {[%clk 0:02:58.2]} 8. exf5 {[%clk 0:02:50.1]}
8... Bxf5 {[%clk 0:02:59.1]} 9. Bd3 {[%clk 0:02:50.5]} 9... Be6 {[%clk
0:02:43.8]} 10. Nd5 {[%clk 0:02:49.7]} 10... Nf6 {[%clk 0:02:39.1]} 11. Nbc3
{[%clk 0:02:48.7]} 11... O-O {[%clk 0:02:37.4]} 12. O-O {[%clk 0:02:45.7]} 12...
Qd7 {[%clk 0:02:37.6]} 13. Be3 {[%clk 0:02:40]} 13... Ng4 {[%clk 0:02:33.5]} 14.
Be4 {[%clk 0:02:39.6]} 14... Nxe3 {[%clk 0:02:31.8]} 15. fxe3 {[%clk 0:02:39.2]}
15... Rxf1+ {[%clk 0:02:28.9]} 16. Qxf1 {[%clk 0:02:38.6]} 16... Rf8 {[%clk
0:02:29.5]} 17. Qd3 {[%clk 0:02:35.3]} 17... g6 {[%clk 0:02:25.1]} 18. Rd1
{[%clk 0:02:20.4]} 18... Bg5 {[%clk 0:02:24.2]} 19. h3 {[%clk 0:02:14.6]} 19...
Kg7 {[%clk 0:02:16.9]} 20. b4 {[%clk 0:02:13.4]} 20... Qf7 {[%clk 0:02:05.7]}
21. Bf3 {[%clk 0:02:04.4]} 21... Bxh3 {[%clk 0:02:00.2]} 22. Ne4 {[%clk
0:02:04.3]} 22... Bh6 {[%clk 0:01:34.4]} 23. Ndf6 {[%clk 0:01:51.7]} 23... Bf5
{[%clk 0:01:25.3]} 24. Qxd6 {[%clk 0:01:48]} 24... Rd8 {[%clk 0:01:25.1]} 25.
Qc5 {[%clk 0:01:41.1]} 25... Rxd1+ {[%clk 0:01:20.9]} 26. Bxd1 {[%clk
0:01:40.9]} 26... Bg5 {[%clk 0:00:38.9]} 27. Nxg5 {[%clk 0:01:28.3]} 27... Qxf6
{[%clk 0:00:38.7]} 28. Nf3 {[%clk 0:01:27.6]} 28... b6 {[%clk 0:00:25]} 29. Qd5
{[%clk 0:01:20.1]} 29... Nxb4 {[%clk 0:00:25.1]} 30. Qb7+ {[%clk 0:01:14.7]}
30... Qf7 {[%clk 0:00:23.7]} 31. Qxf7+ {[%clk 0:01:14.1]} 31... Kxf7 {[%clk
0:00:24.2]} 32. Nxe5+ {[%clk 0:01:14.6]} 32... Ke6 {[%clk 0:00:24.9]} 33. Nf3
{[%clk 0:01:08.8]} 33... Nxa2 {[%clk 0:00:22.2]} 34. c5 {[%clk 0:01:04.4]} 34...
Nc3 {[%clk 0:00:18.7]} 35. Bb3+ {[%clk 0:01:00.6]} 35... Kd7 {[%clk 0:00:16.2]}
36. cxb6 {[%clk 0:00:55.6]} 36... axb6 {[%clk 0:00:17.1]} 37. g4 {[%clk
0:00:47.4]} 37... Be4 {[%clk 0:00:16.7]} 38. Ng5 {[%clk 0:00:44.6]} 38... Bd5
{[%clk 0:00:17.2]} 39. Bc2 {[%clk 0:00:39.6]} 39... Bg8 {[%clk 0:00:17.5]} 40.
Kf2 {[%clk 0:00:37.4]} 40... b5 {[%clk 0:00:18]} 41. Ke1 {[%clk 0:00:37.8]}
41... b4 {[%clk 0:00:16.4]} 42. Kd2 {[%clk 0:00:38.2]} 42... Nd5 {[%clk
0:00:15.9]} 43. Bb3 {[%clk 0:00:35.7]} 43... h6 {[%clk 0:00:08.2]} 44. Nf3
{[%clk 0:00:28.9]} 44... Be6 {[%clk 0:00:06.2]} 45. Ne5+ {[%clk 0:00:24.9]}
45... Kd6 {[%clk 0:00:06.5]} 46. Nxg6 {[%clk 0:00:25.4]} 46... Bxg4 {[%clk
0:00:07.1]} 47. Kd3 {[%clk 0:00:17.6]} 47... Bf5+ {[%clk 0:00:06.8]} 48. Kd4
{[%clk 0:00:16.5]} 48... Bxg6 {[%clk 0:00:06.6]} 49. Bxd5 {[%clk 0:00:17.1]}
49... Bf5 {[%clk 0:00:06.7]} 50. e4 {[%clk 0:00:17.1]} 50... Be6 {[%clk
0:00:07.2]} 51. e5+ {[%clk 0:00:16.8]} 51... Ke7 {[%clk 0:00:07.2]} 52. Be4
{[%clk 0:00:15.7]} 52... b3 {[%clk 0:00:07.7]} 53. Kc3 {[%clk 0:00:16.1]} 53...
h5 {[%clk 0:00:08.4]} 54. Bc6 {[%clk 0:00:11.5]} 54... h4 {[%clk 0:00:08.8]} 55.
Bg2 {[%clk 0:00:10.8]} 55... Kf7 {[%clk 0:00:07.9]} 56. Be4 {[%clk 0:00:11.2]}
56... Kg7 {[%clk 0:00:07.8]} 57. Kb2 {[%clk 0:00:11.6]} 57... Kh6 {[%clk
0:00:07.9]} 58. Kc3 {[%clk 0:00:12.2]} 58... Kg5 {[%clk 0:00:08.4]} 59. Kd4
{[%clk 0:00:12.9]} 59... Kf4 {[%clk 0:00:08.9]} 60. Bb1 {[%clk 0:00:10.5]} 60...
h3 {[%clk 0:00:09.2]} 61. Kc5 {[%clk 0:00:11.3]} 61... h2 {[%clk 0:00:09]} 62.
Kd6 {[%clk 0:00:12.2]} 62... h1=Q {[%clk 0:00:09.3]} 63. Kxe6 {[%clk 0:00:13.1]}
63... Qxb1 {[%clk 0:00:09.6]} 0-1

[Event "*** Titled Tuesday Blitz"]
[Site "Chess.com"]
[Date "2021.04.27"]
[Round "1"]
[White "Zipa5"]
[Black "Lion-Al-Messi"]
[Result "1/2-1/2"]
[WhiteElo "1853"]
[BlackElo "2472"]
[TimeControl "180+1"]
[EndTime "10:08:12 PDT"]
[Termination "Game drawn by repetition"]

1. Nf3 {[%clk 0:02:44.6]} 1... d5 {[%clk 0:02:46.8]} 2. c4 {[%clk 0:02:39.4]}
2... c6 {[%clk 0:02:44.9]} 3. e3 {[%clk 0:02:37.8]} 3... Nf6 {[%clk 0:02:43]} 4.
b3 {[%clk 0:02:35.7]} 4... Nbd7 {[%clk 0:02:41.9]} 5. Bb2 {[%clk 0:02:34.5]}
5... e6 {[%clk 0:02:40.7]} 6. Be2 {[%clk 0:02:33.2]} 6... Bd6 {[%clk 0:02:40.8]}
7. O-O {[%clk 0:02:32]} 7... O-O {[%clk 0:02:41]} 8. d4 {[%clk 0:02:29.1]} 8...
Ne4 {[%clk 0:02:39.2]} 9. Nc3 {[%clk 0:02:26.2]} 9... f5 {[%clk 0:02:38.8]} 10.
Ne1 {[%clk 0:02:16.9]} 10... b6 {[%clk 0:02:32.4]} 11. g3 {[%clk 0:02:10.7]}
11... Bb7 {[%clk 0:02:30.9]} 12. f3 {[%clk 0:02:09.2]} 12... Nxc3 {[%clk
0:02:27.7]} 13. Bxc3 {[%clk 0:02:07.6]} 13... c5 {[%clk 0:02:25.4]} 14. Nc2
{[%clk 0:02:05]} 14... Nf6 {[%clk 0:02:23.6]} 15. Qd2 {[%clk 0:02:02.1]} 15...
Qc7 {[%clk 0:02:22.2]} 16. Kg2 {[%clk 0:01:51.8]} 16... Rae8 {[%clk 0:02:13.8]}
17. Rac1 {[%clk 0:01:46.7]} 17... Nh5 {[%clk 0:02:11]} 18. Qe1 {[%clk
0:01:42.2]} 18... g6 {[%clk 0:02:07.8]} 19. f4 {[%clk 0:01:40.2]} 19... Nf6
{[%clk 0:02:07.3]} 20. Bf3 {[%clk 0:01:34.3]} 20... Ne4 {[%clk 0:02:06.9]} 21.
Bb2 {[%clk 0:01:28.1]} 21... Qe7 {[%clk 0:02:02.3]} 22. Qe2 {[%clk 0:01:23.4]}
22... Ba6 {[%clk 0:01:55.5]} 23. Ne1 {[%clk 0:01:20.9]} 23... g5 {[%clk
0:01:49.1]} 24. Qd3 {[%clk 0:01:15]} 24... g4 {[%clk 0:01:44.7]} 25. Bxe4 {[%clk
0:01:11.4]} 25... dxe4 {[%clk 0:01:38.8]} 26. Qc2 {[%clk 0:01:08.4]} 26... h5
{[%clk 0:01:38.3]} 27. Rh1 {[%clk 0:01:04.6]} 27... h4 {[%clk 0:01:38]} 28. Qc3
{[%clk 0:00:59.7]} 28... Qg7 {[%clk 0:01:33.3]} 29. dxc5 {[%clk 0:00:56.9]}
29... Qxc3 {[%clk 0:01:33]} 30. Bxc3 {[%clk 0:00:56.2]} 30... Bxc5 {[%clk
0:01:33.2]} 31. Bd4 {[%clk 0:00:55.3]} 31... Rd8 {[%clk 0:01:30.3]} 32. Nc2
{[%clk 0:00:54.4]} 32... Rf7 {[%clk 0:01:23.1]} 33. Rhd1 {[%clk 0:00:51.5]}
33... Rfd7 {[%clk 0:01:23]} 34. Rd2 {[%clk 0:00:48.6]} 34... h3+ {[%clk
0:01:18.5]} 35. Kf2 {[%clk 0:00:47.1]} 35... b5 {[%clk 0:01:13.4]} 36. cxb5
{[%clk 0:00:41.4]} 36... Bxb5 {[%clk 0:01:14.3]} 37. Rcd1 {[%clk 0:00:36]} 37...
Bb6 {[%clk 0:01:14]} 38. Bc3 {[%clk 0:00:33.9]} 38... Bd3 {[%clk 0:01:12.7]} 39.
Nd4 {[%clk 0:00:30.6]} 39... Rxd4 {[%clk 0:01:01.4]} 40. exd4 {[%clk 0:00:27.2]}
40... Rxd4 {[%clk 0:01:00.4]} 41. Bxd4 {[%clk 0:00:25]} 41... Bxd4+ {[%clk
0:01:01.3]} 42. Ke1 {[%clk 0:00:23.3]} 42... Bc3 {[%clk 0:01:01]} 43. Kf2 {[%clk
0:00:20.8]} 43... Bd4+ {[%clk 0:00:55.1]} 44. Ke1 {[%clk 0:00:20.5]} 44... Bc3
{[%clk 0:00:55.2]} 45. Kf2 {[%clk 0:00:20]} 45... Bxd2 {[%clk 0:00:27]} 46. Rxd2
{[%clk 0:00:18.7]} 46... Kf7 {[%clk 0:00:27.6]} 47. Ke3 {[%clk 0:00:18.6]} 47...
Ke7 {[%clk 0:00:26.4]} 48. Kd4 {[%clk 0:00:17.9]} 48... Kd6 {[%clk 0:00:25.7]}
49. Rd1 {[%clk 0:00:16]} 49... Be2 {[%clk 0:00:21.3]} 50. Rc1 {[%clk 0:00:15.1]}
50... Bb5 {[%clk 0:00:17.6]} 51. Rc8 {[%clk 0:00:12.5]} 51... a6 {[%clk
0:00:17]} 52. Ra8 {[%clk 0:00:11.2]} 52... Bf1 {[%clk 0:00:16.3]} 53. Ra7 {[%clk
0:00:09.6]} 53... Kc6 {[%clk 0:00:15.7]} 54. Re7 {[%clk 0:00:07]} 54... Kd6
{[%clk 0:00:15.5]} 55. Ra7 {[%clk 0:00:06.5]} 55... Kc6 {[%clk 0:00:15.7]} 56.
Re7 {[%clk 0:00:05.7]} 56... Kd6 {[%clk 0:00:14.6]} 57. Ra7 {[%clk 0:00:04.7]}
1/2-1/2

[Event "*** Titled Tuesday Blitz"]
[Site "Chess.com"]
[Date "2021.04.27"]
[Round "1"]
[White "Homino"]
[Black "klimkoj"]
[Result "1-0"]
[WhiteElo "2318"]
[BlackElo "2607"]
[TimeControl "180+1"]
[EndTime "10:08:13 PDT"]
[Termination "Homino won by checkmate"]

1. e4 {[%clk 0:03:00.9]} 1... Nc6 {[%clk 0:02:59.1]} 2. Nf3 {[%clk 0:03:00.2]}
2... e6 {[%clk 0:02:58.5]} 3. d4 {[%clk 0:02:58.1]} 3... d5 {[%clk 0:02:58.5]}
4. exd5 {[%clk 0:02:56.6]} 4... exd5 {[%clk 0:02:59.4]} 5. h3 {[%clk 0:02:53.9]}
5... Bd6 {[%clk 0:02:59.4]} 6. Bd3 {[%clk 0:02:53.2]} 6... Nge7 {[%clk 0:02:56]}
7. O-O {[%clk 0:02:52.5]} 7... h6 {[%clk 0:02:56.3]} 8. c3 {[%clk 0:02:50]} 8...
O-O {[%clk 0:02:56.3]} 9. Bc2 {[%clk 0:02:48.6]} 9... Bf5 {[%clk 0:02:56]} 10.
Re1 {[%clk 0:02:44.5]} 10... Bxc2 {[%clk 0:02:52.7]} 11. Qxc2 {[%clk 0:02:45.4]}
11... Qd7 {[%clk 0:02:53.2]} 12. Ne5 {[%clk 0:02:36.6]} 12... Bxe5 {[%clk
0:02:50.8]} 13. dxe5 {[%clk 0:02:37.5]} 13... Qf5 {[%clk 0:02:49.2]} 14. Qxf5
{[%clk 0:02:25.4]} 14... Nxf5 {[%clk 0:02:50.1]} 15. Nd2 {[%clk 0:02:18.5]}
15... g5 {[%clk 0:02:23.6]} 16. Nb3 {[%clk 0:02:04.9]} 16... Rfe8 {[%clk
0:02:19.8]} 17. f4 {[%clk 0:01:51.4]} 17... gxf4 {[%clk 0:02:19.4]} 18. Bxf4
{[%clk 0:01:50.6]} 18... Kh7 {[%clk 0:02:12.2]} 19. Rad1 {[%clk 0:01:46.8]}
19... Rad8 {[%clk 0:02:11.9]} 20. g4 {[%clk 0:01:38.7]} 20... Nh4 {[%clk
0:02:11]} 21. Kf2 {[%clk 0:01:01.1]} 21... Ng6 {[%clk 0:02:04.9]} 22. Kg3 {[%clk
0:00:48.2]} 22... Ngxe5 {[%clk 0:01:51]} 23. Nd4 {[%clk 0:00:44.7]} 23... f6
{[%clk 0:01:28.4]} 24. Nb5 {[%clk 0:00:41.5]} 24... Re7 {[%clk 0:01:25.4]} 25.
Re2 {[%clk 0:00:39]} 25... Rde8 {[%clk 0:01:16.2]} 26. Rxd5 {[%clk 0:00:37.9]}
26... a6 {[%clk 0:01:11.9]} 27. Nd4 {[%clk 0:00:37.6]} 27... Nxd4 {[%clk
0:01:11.4]} 28. cxd4 {[%clk 0:00:36.9]} 28... Nc6 {[%clk 0:01:10.4]} 29. Rxe7+
{[%clk 0:00:36]} 29... Rxe7 {[%clk 0:01:11.3]} 30. Rf5 {[%clk 0:00:35.1]} 30...
Kg7 {[%clk 0:01:09]} 31. Rd5 {[%clk 0:00:34.8]} 31... Kg6 {[%clk 0:01:03.6]} 32.
h4 {[%clk 0:00:34.5]} 32... Kg7 {[%clk 0:00:44.8]} 33. h5 {[%clk 0:00:35.4]}
33... Rf7 {[%clk 0:00:41.5]} 34. Kf3 {[%clk 0:00:34.9]} 34... Re7 {[%clk
0:00:41.8]} 35. a3 {[%clk 0:00:29]} 35... Rf7 {[%clk 0:00:36.9]} 36. Kg3 {[%clk
0:00:29]} 36... Re7 {[%clk 0:00:37.1]} 37. b4 {[%clk 0:00:28.3]} 37... Na7
{[%clk 0:00:36.4]} 38. Rc5 {[%clk 0:00:27.5]} 38... Nb5 {[%clk 0:00:36.2]} 39.
d5 {[%clk 0:00:26.5]} 39... Rd7 {[%clk 0:00:30.7]} 40. a4 {[%clk 0:00:26.6]}
40... Nd6 {[%clk 0:00:22.5]} 41. Bxd6 {[%clk 0:00:24.5]} 41... cxd6 {[%clk
0:00:23.4]} 42. Rc8 {[%clk 0:00:24.1]} 42... Re7 {[%clk 0:00:20.2]} 43. Kf4
{[%clk 0:00:24.6]} 43... Re5 {[%clk 0:00:18.8]} 44. Rc7+ {[%clk 0:00:25.2]}
44... Kg8 {[%clk 0:00:19.3]} 45. Rxb7 {[%clk 0:00:25.8]} 45... Rxd5 {[%clk
0:00:19.9]} 46. b5 {[%clk 0:00:26.3]} 46... axb5 {[%clk 0:00:19.5]} 47. axb5
{[%clk 0:00:27.2]} 47... Rc5 {[%clk 0:00:19.5]} 48. b6 {[%clk 0:00:27.2]} 48...
Rb5 {[%clk 0:00:19.9]} 49. Ke4 {[%clk 0:00:25.4]} 49... d5+ {[%clk 0:00:17.9]}
50. Kd4 {[%clk 0:00:25.2]} 50... Kh8 {[%clk 0:00:15.3]} 51. Rb8+ {[%clk
0:00:20.5]} 51... Kg7 {[%clk 0:00:15.4]} 52. Rb7+ {[%clk 0:00:21.4]} 52... Kh8
{[%clk 0:00:15.4]} 53. Ke3 {[%clk 0:00:21.4]} 53... Rb4 {[%clk 0:00:15.2]} 54.
Kd3 {[%clk 0:00:20.6]} 54... d4 {[%clk 0:00:14.1]} 55. Rb8+ {[%clk 0:00:19.8]}
55... Kg7 {[%clk 0:00:14.3]} 56. Rb7+ {[%clk 0:00:20.7]} 56... Kg8 {[%clk
0:00:14.9]} 57. Ke4 {[%clk 0:00:20.7]} 57... Kf8 {[%clk 0:00:12.1]} 58. Kf5
{[%clk 0:00:20.4]} 58... d3 {[%clk 0:00:11]} 59. Kxf6 {[%clk 0:00:20.2]} 59...
Ke8 {[%clk 0:00:09.6]} 60. Ke6 {[%clk 0:00:17.9]} 60... d2 {[%clk 0:00:07.2]}
61. Rb8# {[%clk 0:00:17.4]} 1-0

[Event "*** Titled Tuesday Blitz"]
[Site "Chess.com"]
[Date "2021.04.27"]
[Round "1"]
[White "exoticprincess"]
[Black "Keks2017"]
[Result "1-0"]
[WhiteElo "2923"]
[BlackElo "2455"]
[TimeControl "180+1"]
[EndTime "10:08:14 PDT"]
[Termination "exoticprincess won by checkmate"]

1. d4 {[%clk 0:03:00.9]} 1... d6 {[%clk 0:02:59.3]} 2. e4 {[%clk 0:03:00]} 2...
Nf6 {[%clk 0:02:58.5]} 3. Nc3 {[%clk 0:03:00.5]} 3... g6 {[%clk 0:02:58.2]} 4.
Be2 {[%clk 0:02:59.4]} 4... c6 {[%clk 0:02:56.6]} 5. h4 {[%clk 0:02:59.4]} 5...
b5 {[%clk 0:02:53.4]} 6. a3 {[%clk 0:02:58.2]} 6... a6 {[%clk 0:02:52.4]} 7. h5
{[%clk 0:02:57.9]} 7... Bg7 {[%clk 0:02:52.4]} 8. h6 {[%clk 0:02:57.5]} 8... Bf8
{[%clk 0:02:51.9]} 9. Bg5 {[%clk 0:02:58.1]} 9... Nbd7 {[%clk 0:02:50.3]} 10. f4
{[%clk 0:02:55]} 10... Nb6 {[%clk 0:02:50.3]} 11. Nf3 {[%clk 0:02:51.9]} 11...
Qc7 {[%clk 0:02:45.8]} 12. Qd2 {[%clk 0:02:50]} 12... Bb7 {[%clk 0:02:45.6]} 13.
O-O-O {[%clk 0:02:49]} 13... O-O-O {[%clk 0:02:45.1]} 14. Kb1 {[%clk 0:02:48.2]}
14... Kb8 {[%clk 0:02:44.2]} 15. Qe3 {[%clk 0:02:36.7]} 15... Rc8 {[%clk
0:02:42.4]} 16. Nd2 {[%clk 0:02:29.5]} 16... c5 {[%clk 0:02:28]} 17. dxc5 {[%clk
0:02:22.1]} 17... Qxc5 {[%clk 0:02:21.7]} 18. Qxc5 {[%clk 0:02:13.7]} 18... Rxc5
{[%clk 0:02:21.4]} 19. Bxf6 {[%clk 0:02:02.9]} 19... exf6 {[%clk 0:02:20.5]} 20.
Nb3 {[%clk 0:02:03.2]} 20... Rc7 {[%clk 0:02:18.5]} 21. Bf3 {[%clk 0:01:59.9]}
21... Nc4 {[%clk 0:02:12.5]} 22. Rd3 {[%clk 0:01:55.5]} 22... Be7 {[%clk
0:02:11]} 23. Nd2 {[%clk 0:01:44.7]} 23... Nb6 {[%clk 0:02:02.5]} 24. Re1 {[%clk
0:01:40.4]} 24... Re8 {[%clk 0:02:01.9]} 25. Nd5 {[%clk 0:01:31.3]} 25... Bxd5
{[%clk 0:01:46.2]} 26. exd5 {[%clk 0:01:32.2]} 26... f5 {[%clk 0:01:42.9]} 27.
Nb3 {[%clk 0:01:26.7]} 27... Kc8 {[%clk 0:01:32.2]} 28. Nd4 {[%clk 0:01:23.9]}
28... Kd7 {[%clk 0:01:29.4]} 29. Nc6 {[%clk 0:01:17.4]} 29... Bf8 {[%clk
0:01:28.3]} 30. Rxe8 {[%clk 0:01:17.9]} 30... Kxe8 {[%clk 0:01:28.1]} 31. Re3+
{[%clk 0:01:18.6]} 31... Kd7 {[%clk 0:01:27.8]} 32. Nb8+ {[%clk 0:01:19]} 32...
Kd8 {[%clk 0:01:23.1]} 33. Nxa6 {[%clk 0:01:19.9]} 33... Rc4 {[%clk 0:01:20.4]}
34. g3 {[%clk 0:01:19.4]} 34... Bxh6 {[%clk 0:01:19.1]} 35. Nb4 {[%clk
0:01:18.8]} 35... Bf8 {[%clk 0:01:16.7]} 36. c3 {[%clk 0:01:15.3]} 36... Rc5
{[%clk 0:01:04.9]} 37. Kc2 {[%clk 0:01:10.6]} 37... Kd7 {[%clk 0:01:00.3]} 38.
Re1 {[%clk 0:01:09.1]} 38... h5 {[%clk 0:00:56.8]} 39. Kb3 {[%clk 0:01:08.6]}
39... Nc4 {[%clk 0:00:52.9]} 40. Be2 {[%clk 0:01:07.2]} 40... Nd2+ {[%clk
0:00:50.2]} 41. Kc2 {[%clk 0:01:05.9]} 41... Ne4 {[%clk 0:00:50]} 42. Rg1 {[%clk
0:01:04]} 42... Bg7 {[%clk 0:00:41.2]} 43. Bd3 {[%clk 0:01:00.6]} 43... Nf6
{[%clk 0:00:38.2]} 44. Rd1 {[%clk 0:00:53.9]} 44... Ng4 {[%clk 0:00:30]} 45. Re1
{[%clk 0:00:33.7]} 45... Nf6 {[%clk 0:00:29.4]} 46. Rd1 {[%clk 0:00:31.5]} 46...
Ng4 {[%clk 0:00:29.3]} 47. Kb3 {[%clk 0:00:31.5]} 47... Nf6 {[%clk 0:00:21.6]}
48. Bf1 {[%clk 0:00:21.8]} 48... Bh6 {[%clk 0:00:20.7]} 49. Na6 {[%clk
0:00:19.8]} 49... Rc8 {[%clk 0:00:18.8]} 50. Bxb5+ {[%clk 0:00:18.9]} 50... Kd8
{[%clk 0:00:19]} 51. Nb4 {[%clk 0:00:19.8]} 51... h4 {[%clk 0:00:16.7]} 52. Rh1
{[%clk 0:00:18.1]} 52... Ne4 {[%clk 0:00:13.7]} 53. Rxh4 {[%clk 0:00:17.2]}
53... Bg7 {[%clk 0:00:14.6]} 54. Rh7 {[%clk 0:00:16.5]} 54... Bf6 {[%clk
0:00:14.4]} 55. Rxf7 {[%clk 0:00:16.4]} 55... Rc5 {[%clk 0:00:12.5]} 56. a4
{[%clk 0:00:14.5]} 56... g5 {[%clk 0:00:11.7]} 57. fxg5 {[%clk 0:00:14.3]} 57...
Bxg5 {[%clk 0:00:11.9]} 58. Rxf5 {[%clk 0:00:15.1]} 58... Bc1 {[%clk 0:00:11.8]}
59. Nc6+ {[%clk 0:00:15.1]} 59... Kc7 {[%clk 0:00:11.4]} 60. Kb4 {[%clk
0:00:14.5]} 60... Bd2 {[%clk 0:00:09.2]} 61. Rf7+ {[%clk 0:00:14.5]} 61... Kc8
{[%clk 0:00:09.2]} 62. Ba6# {[%clk 0:00:14.4]} 1-0